[Event "Titled Tuesday Blitz May 9 Late 2023"]
[White "Moussard, Jules"]
[Black "Sarana, Alexey"]
[WhiteFideId "642908"]
[BlackFideId "24133795"]
[WhiteElo "2610"]
[BlackElo "2714"]
[Result "0-1"]
[Round "06"]
[TimeControl "180+2"]
[Date "2023.05.09"]
[WhiteClock "0:00:54"]
[BlackClock "0:01:07"]

1. Nf3 {[%clk 0:03:00]}  d5 {[%clk 0:02:59]} 2. g3 {[%clk 0:03:00]}  g6 {[%clk 0:03:00]} 3. Bg2 {[%clk 0:03:01]}  Bg7 {[%clk 0:03:01]} 4. d4 {[%clk 0:03:01]}  c6 {[%clk 0:03:00]} 5. O-O {[%clk 0:03:02]}  Nf6 {[%clk 0:03:01]} 6. b3 {[%clk 0:03:02]}  O-O {[%clk 0:03:00]} 7. Bb2 {[%clk 0:03:02]}  Nbd7 {[%clk 0:03:01]} 8. Nbd2 {[%clk 0:03:03]}  Ne4 {[%clk 0:02:52]} 9. c4 {[%clk 0:03:01]}  Ndf6 {[%clk 0:02:49]} 10. e3 {[%clk 0:02:59]}  Bg4 {[%clk 0:02:48]} 11. Qc2 {[%clk 0:02:36]}  Nxd2 {[%clk 0:02:40]} 12. Nxd2 {[%clk 0:02:34]}  Bf5 {[%clk 0:02:37]} 13. Qc1 {[%clk 0:02:31]}  Qd7 {[%clk 0:02:36]} 14. Re1 {[%clk 0:02:30]}  Bh3 {[%clk 0:02:35]} 15. Bh1 {[%clk 0:02:23]}  h5 {[%clk 0:02:35]} 16. e4 {[%clk 0:02:07]}  dxe4 {[%clk 0:02:35]} 17. Nxe4 {[%clk 0:02:07]}  Nxe4 {[%clk 0:02:33]} 18. Rxe4 {[%clk 0:02:07]}  Bf5 {[%clk 0:02:33]} 19. Re1 {[%clk 0:02:06]}  Rfe8 {[%clk 0:02:30]} 20. Qf4 {[%clk 0:02:03]}  Rad8 {[%clk 0:02:28]} 21. Rad1 {[%clk 0:02:02]}  e5 {[%clk 0:02:21]} 22. dxe5 {[%clk 0:01:32]}  Qxd1 {[%clk 0:02:22]} 23. Rxd1 {[%clk 0:01:33]}  Rxd1+ {[%clk 0:02:21]} 24. Kg2 {[%clk 0:01:33]}  Red8 {[%clk 0:02:16]} 25. h4 {[%clk 0:01:24]}  R8d2 {[%clk 0:01:59]} 26. Bc3 {[%clk 0:01:24]}  Re2 {[%clk 0:01:58]} 27. Kh2 {[%clk 0:01:21]}  Rd3 {[%clk 0:01:37]} 28. Bd4 {[%clk 0:01:14]}  Kh7 {[%clk 0:01:16]} 29. Bf3 {[%clk 0:01:00]}  Re1 {[%clk 0:01:13]} 30. Be3 {[%clk 0:00:58]}  Rexe3 {[%clk 0:01:08]} 31. fxe3 {[%clk 0:00:59]}  Bh6 {[%clk 0:01:09]} 32. e6 {[%clk 0:00:54]}  Bxf4 {[%clk 0:01:07]} 0-1


[Site "https://www.chess.com"]

[Event "Titled Tuesday Blitz May 9 Late 2023"]
[White "Yoo, Christopher Woojin"]
[Black "Paravyan, David"]
[WhiteFideId "30909694"]
[BlackFideId "4194985"]
[WhiteElo "2519"]
[BlackElo "2563"]
[Result "1-0"]
[Round "06"]
[TimeControl "180+2"]
[Date "2023.05.09"]
[WhiteClock "0:00:25"]
[BlackClock "0:00:01"]

1. Nf3 {[%clk 0:03:00]}  Nf6 {[%clk 0:02:58]} 2. c4 {[%clk 0:03:01]}  c5 {[%clk 0:02:59]} 3. b3 {[%clk 0:03:00]}  d5 {[%clk 0:02:59]} 4. cxd5 {[%clk 0:02:59]}  Nxd5 {[%clk 0:03:00]} 5. Bb2 {[%clk 0:03:00]}  Nc6 {[%clk 0:03:00]} 6. Nc3 {[%clk 0:02:52]}  Nxc3 {[%clk 0:02:58]} 7. Bxc3 {[%clk 0:02:51]}  f6 {[%clk 0:02:56]} 8. e3 {[%clk 0:02:35]}  e5 {[%clk 0:02:56]} 9. d4 {[%clk 0:02:36]}  cxd4 {[%clk 0:02:53]} 10. exd4 {[%clk 0:02:36]}  exd4 {[%clk 0:02:53]} 11. Nxd4 {[%clk 0:02:33]}  Nxd4 {[%clk 0:02:52]} 12. Qxd4 {[%clk 0:02:30]}  Qxd4 {[%clk 0:02:48]} 13. Bxd4 {[%clk 0:02:31]}  Bb4+ {[%clk 0:02:49]} 14. Ke2 {[%clk 0:02:26]}  O-O {[%clk 0:02:42]} 15. Kf3 {[%clk 0:02:25]}  Be6 {[%clk 0:02:41]} 16. Rc1 {[%clk 0:02:22]}  Rfd8 {[%clk 0:02:39]} 17. Bc4 {[%clk 0:02:22]}  Bxc4 {[%clk 0:01:55]} 18. Rxc4 {[%clk 0:02:22]}  Bd6 {[%clk 0:01:54]} 19. Be3 {[%clk 0:02:18]}  a6 {[%clk 0:01:48]} 20. Bb6 {[%clk 0:02:15]}  Rdc8 {[%clk 0:01:37]} 21. Rd1 {[%clk 0:02:10]}  Rxc4 {[%clk 0:01:37]} 22. bxc4 {[%clk 0:02:11]}  Bf8 {[%clk 0:01:38]} 23. c5 {[%clk 0:01:26]}  Rc8 {[%clk 0:01:38]} 24. g4 {[%clk 0:01:23]}  g6 {[%clk 0:01:27]} 25. h4 {[%clk 0:01:19]}  Rc6 {[%clk 0:00:52]} 26. Rd8 {[%clk 0:01:03]}  Kf7 {[%clk 0:00:52]} 27. Rd7+ {[%clk 0:01:01]}  Kg8 {[%clk 0:00:53]} 28. Rd5 {[%clk 0:00:56]}  Kf7 {[%clk 0:00:53]} 29. Ke4 {[%clk 0:00:55]}  Ke8 {[%clk 0:00:41]} 30. Rd8+ {[%clk 0:00:50]}  Kf7 {[%clk 0:00:39]} 31. Kd5 {[%clk 0:00:49]}  f5 {[%clk 0:00:33]} 32. Rd7+ {[%clk 0:00:44]}  Be7 {[%clk 0:00:18]} 33. Rxb7 {[%clk 0:00:40]}  Rc8 {[%clk 0:00:04]} 34. c6 {[%clk 0:00:32]}  fxg4 {[%clk 0:00:03]} 35. Bc5 {[%clk 0:00:30]}  Rd8+ {[%clk 0:00:02]} 36. Kc4 {[%clk 0:00:27]}  Re8 {[%clk 0:00:01]} 37. Bxe7 {[%clk 0:00:25]} 1-0


[Site "https://www.chess.com"]

[Event "Titled Tuesday Blitz May 9 Late 2023"]
[White "Livaic, Leon"]
[Black "Andreikin, Dmitry"]
[WhiteFideId "14531534"]
[BlackFideId "4158814"]
[WhiteElo "2522"]
[BlackElo "2736"]
[Result "0-1"]
[Round "06"]
[TimeControl "180+2"]
[Date "2023.05.09"]
[WhiteClock "0:00:00"]
[BlackClock "0:01:02"]

1. d4 {[%clk 0:03:00]}  d5 {[%clk 0:02:59]} 2. c4 {[%clk 0:03:00]}  c6 {[%clk 0:02:59]} 3. cxd5 {[%clk 0:03:01]}  cxd5 {[%clk 0:02:59]} 4. Bf4 {[%clk 0:03:02]}  Nc6 {[%clk 0:02:58]} 5. e3 {[%clk 0:03:02]}  Nf6 {[%clk 0:02:58]} 6. Nc3 {[%clk 0:03:02]}  a6 {[%clk 0:02:58]} 7. Be2 {[%clk 0:03:03]}  Bf5 {[%clk 0:02:57]} 8. Nf3 {[%clk 0:03:03]}  e6 {[%clk 0:02:56]} 9. Qb3 {[%clk 0:03:04]}  Bb4 {[%clk 0:02:47]} 10. O-O {[%clk 0:02:55]}  O-O {[%clk 0:02:46]} 11. Ne5 {[%clk 0:02:56]}  Bd6 {[%clk 0:02:26]} 12. Nxc6 {[%clk 0:02:38]}  bxc6 {[%clk 0:02:27]} 13. Bxd6 {[%clk 0:02:31]}  Qxd6 {[%clk 0:02:28]} 14. Na4 {[%clk 0:02:31]}  Rfb8 {[%clk 0:02:26]} 15. Qd1 {[%clk 0:02:30]}  e5 {[%clk 0:02:16]} 16. dxe5 {[%clk 0:02:19]}  Qxe5 {[%clk 0:02:16]} 17. Rc1 {[%clk 0:02:19]}  Rb4 {[%clk 0:02:13]} 18. b3 {[%clk 0:02:09]}  Rh4 {[%clk 0:02:12]} 19. g3 {[%clk 0:02:09]}  Ng4 {[%clk 0:02:12]} 20. Qd4 {[%clk 0:01:33]}  Rh6 {[%clk 0:01:50]} 21. Bxg4 {[%clk 0:01:12]}  Qxd4 {[%clk 0:01:49]} 22. exd4 {[%clk 0:01:13]}  Bxg4 {[%clk 0:01:50]} 23. f3 {[%clk 0:01:13]}  Bh3 {[%clk 0:01:45]} 24. Rfe1 {[%clk 0:01:13]}  Kf8 {[%clk 0:01:46]} 25. Kf2 {[%clk 0:01:11]}  a5 {[%clk 0:01:45]} 26. g4 {[%clk 0:01:04]}  f5 {[%clk 0:01:35]} 27. Kg3 {[%clk 0:01:04]}  Kg8 {[%clk 0:01:30]} 28. Re5 {[%clk 0:00:40]}  Rf8 {[%clk 0:01:24]} 29. Rce1 {[%clk 0:00:35]}  fxg4 {[%clk 0:01:24]} 30. fxg4 {[%clk 0:00:36]}  Bf1 {[%clk 0:01:24]} 31. h4 {[%clk 0:00:34]}  Rhf6 {[%clk 0:01:23]} 32. R1e3 {[%clk 0:00:26]}  Rf2 {[%clk 0:01:20]} 33. h5 {[%clk 0:00:20]}  Rg2+ {[%clk 0:01:08]} 34. Kh4 {[%clk 0:00:00]}  Rh2+ {[%clk 0:01:02]} 0-1


[Site "https://www.chess.com"]

[Event "Titled Tuesday Blitz May 9 Late 2023"]
[White "Terry, Renato"]
[Black "Mekhitarian, Krikor Sevag"]
[WhiteFideId "3803457"]
[BlackFideId "2107660"]
[WhiteElo "2575"]
[BlackElo "2604"]
[Result "0-1"]
[Round "06"]
[TimeControl "180+2"]
[Date "2023.05.09"]
[WhiteClock "0:00:00"]
[BlackClock "0:00:02"]

1. Nf3 {[%clk 0:03:00]}  d5 {[%clk 0:02:53]} 2. e3 {[%clk 0:02:59]}  Nf6 {[%clk 0:02:52]} 3. b4 {[%clk 0:02:59]}  g6 {[%clk 0:02:52]} 4. Bb2 {[%clk 0:02:59]}  Bg7 {[%clk 0:02:52]} 5. Be2 {[%clk 0:02:56]}  O-O {[%clk 0:02:52]} 6. O-O {[%clk 0:02:57]}  c6 {[%clk 0:02:35]} 7. c4 {[%clk 0:02:54]}  a5 {[%clk 0:02:29]} 8. a3 {[%clk 0:02:50]}  axb4 {[%clk 0:02:27]} 9. axb4 {[%clk 0:02:51]}  Rxa1 {[%clk 0:02:27]} 10. Bxa1 {[%clk 0:02:52]}  Na6 {[%clk 0:02:26]} 11. b5 {[%clk 0:02:44]}  Nc5 {[%clk 0:02:20]} 12. bxc6 {[%clk 0:02:44]}  bxc6 {[%clk 0:02:18]} 13. Qc2 {[%clk 0:02:37]}  Bf5 {[%clk 0:02:13]} 14. Qc3 {[%clk 0:02:22]}  Nce4 {[%clk 0:01:47]} 15. Qc1 {[%clk 0:02:18]}  Qa8 {[%clk 0:01:40]} 16. Nc3 {[%clk 0:02:15]}  Nxc3 {[%clk 0:01:36]} 17. Bxc3 {[%clk 0:02:05]}  Rd8 {[%clk 0:01:31]} 18. Qb2 {[%clk 0:01:54]}  Rb8 {[%clk 0:01:30]} 19. Qa1 {[%clk 0:01:53]}  Qxa1 {[%clk 0:01:23]} 20. Rxa1 {[%clk 0:01:54]}  Bg4 {[%clk 0:01:23]} 21. h3 {[%clk 0:01:52]}  Bxf3 {[%clk 0:01:23]} 22. Bxf3 {[%clk 0:01:53]}  e6 {[%clk 0:01:23]} 23. Ra6 {[%clk 0:01:53]}  Rc8 {[%clk 0:01:22]} 24. c5 {[%clk 0:01:42]}  Nd7 {[%clk 0:01:04]} 25. Bxg7 {[%clk 0:01:33]}  Kxg7 {[%clk 0:01:04]} 26. d4 {[%clk 0:01:34]}  Rc7 {[%clk 0:01:00]} 27. Bd1 {[%clk 0:01:31]}  e5 {[%clk 0:00:56]} 28. Ba4 {[%clk 0:01:31]}  exd4 {[%clk 0:00:57]} 29. exd4 {[%clk 0:01:31]}  Nb8 {[%clk 0:00:54]} 30. Rb6 {[%clk 0:01:28]}  Ra7 {[%clk 0:00:51]} 31. Bc2 {[%clk 0:01:15]}  Ra1+ {[%clk 0:00:46]} 32. Kh2 {[%clk 0:01:16]}  Ra2 {[%clk 0:00:45]} 33. Bb3 {[%clk 0:01:13]}  Ra8 {[%clk 0:00:45]} 34. h4 {[%clk 0:01:07]}  Kf8 {[%clk 0:00:43]} 35. f3 {[%clk 0:01:02]}  Ke7 {[%clk 0:00:44]} 36. Kg3 {[%clk 0:01:02]}  Kd8 {[%clk 0:00:41]} 37. Kf4 {[%clk 0:00:49]}  f6 {[%clk 0:00:32]} 38. Bc2 {[%clk 0:00:41]}  Kc7 {[%clk 0:00:32]} 39. Rb2 {[%clk 0:00:37]}  Nd7 {[%clk 0:00:29]} 40. Bd3 {[%clk 0:00:34]}  Nf8 {[%clk 0:00:27]} 41. Re2 {[%clk 0:00:31]}  Kd7 {[%clk 0:00:28]} 42. Rb2 {[%clk 0:00:30]}  Ne6+ {[%clk 0:00:23]} 43. Ke3 {[%clk 0:00:31]}  Kc7 {[%clk 0:00:24]} 44. Rb4 {[%clk 0:00:25]}  Ra3 {[%clk 0:00:24]} 45. g3 {[%clk 0:00:24]}  f5 {[%clk 0:00:22]} 46. f4 {[%clk 0:00:22]}  Ng7 {[%clk 0:00:20]} 47. Rb1 {[%clk 0:00:17]}  Nh5 {[%clk 0:00:19]} 48. Rg1 {[%clk 0:00:17]}  Nf6 {[%clk 0:00:20]} 49. Rc1 {[%clk 0:00:13]}  Ng4+ {[%clk 0:00:18]} 50. Ke2 {[%clk 0:00:12]}  Ra2+ {[%clk 0:00:18]} 51. Rc2 {[%clk 0:00:13]}  Ra4 {[%clk 0:00:18]} 52. Rb2 {[%clk 0:00:11]}  Nf6 {[%clk 0:00:09]} 53. Ke3 {[%clk 0:00:11]}  Ra3 {[%clk 0:00:09]} 54. Rb1 {[%clk 0:00:04]}  h5 {[%clk 0:00:09]} 55. Rb2 {[%clk 0:00:04]}  Ne4 {[%clk 0:00:09]} 56. Rg2 {[%clk 0:00:04]}  Nf6 {[%clk 0:00:08]} 57. Rb2 {[%clk 0:00:03]}  Ng4+ {[%clk 0:00:08]} 58. Ke2 {[%clk 0:00:04]}  Ra4 {[%clk 0:00:07]} 59. Rb3 {[%clk 0:00:03]}  Ra2+ {[%clk 0:00:07]} 60. Ke1 {[%clk 0:00:04]}  Ne3 {[%clk 0:00:05]} 61. Bb1 {[%clk 0:00:03]}  Ng2+ {[%clk 0:00:05]} 62. Kf1 {[%clk 0:00:04]}  Rd2 {[%clk 0:00:05]} 63. Bd3 {[%clk 0:00:04]}  Ne3+ {[%clk 0:00:04]} 64. Ke1 {[%clk 0:00:05]}  Rh2 {[%clk 0:00:04]} 65. Ba6 {[%clk 0:00:05]}  Nc2+ {[%clk 0:00:03]} 66. Kf1 {[%clk 0:00:05]}  Nxd4 {[%clk 0:00:02]} 67. Rb7+ {[%clk 0:00:06]}  Kd8 {[%clk 0:00:03]} 68. Rg7 {[%clk 0:00:06]}  Ra2 {[%clk 0:00:03]} 69. Bd3 {[%clk 0:00:03]}  Ra3 {[%clk 0:00:02]} 70. Bb1 {[%clk 0:00:00]}  Rxg3 {[%clk 0:00:02]} 0-1


[Site "https://www.chess.com"]

[Event "Titled Tuesday Blitz May 9 Late 2023"]
[White "Krzyzanowski, Marcin"]
[Black "Rasulov, Vugar"]
[WhiteFideId "1132199"]
[BlackFideId "13402390"]
[WhiteElo "2471"]
[BlackElo "2509"]
[Result "1-0"]
[Round "06"]
[TimeControl "180+2"]
[Date "2023.05.09"]
[WhiteClock "0:01:13"]
[BlackClock "0:00:15"]

1. Nf3 {[%clk 0:03:00]}  Nf6 {[%clk 0:03:00]} 2. d4 {[%clk 0:03:00]}  d5 {[%clk 0:02:59]} 3. g3 {[%clk 0:02:59]}  Bf5 {[%clk 0:02:55]} 4. Bg2 {[%clk 0:02:59]}  c6 {[%clk 0:02:56]} 5. O-O {[%clk 0:02:59]}  h6 {[%clk 0:02:57]} 6. c4 {[%clk 0:02:59]}  e6 {[%clk 0:02:57]} 7. Nc3 {[%clk 0:02:59]}  Nbd7 {[%clk 0:02:56]} 8. b3 {[%clk 0:02:54]}  Bb4 {[%clk 0:02:53]} 9. Bb2 {[%clk 0:02:54]}  O-O {[%clk 0:02:54]} 10. Rc1 {[%clk 0:02:50]}  Ne4 {[%clk 0:02:49]} 11. Nh4 {[%clk 0:02:45]}  Bxc3 {[%clk 0:02:43]} 12. Bxc3 {[%clk 0:02:46]}  Nxc3 {[%clk 0:02:42]} 13. Rxc3 {[%clk 0:02:47]}  Bh7 {[%clk 0:02:43]} 14. Nf3 {[%clk 0:02:36]}  Qa5 {[%clk 0:02:41]} 15. Qd2 {[%clk 0:02:27]}  Nf6 {[%clk 0:02:40]} 16. Rcc1 {[%clk 0:02:21]}  Qa3 {[%clk 0:02:34]} 17. Ne5 {[%clk 0:02:18]}  a5 {[%clk 0:02:31]} 18. cxd5 {[%clk 0:02:14]}  exd5 {[%clk 0:02:30]} 19. g4 {[%clk 0:02:08]}  Rfe8 {[%clk 0:02:27]} 20. h4 {[%clk 0:02:05]}  Ne4 {[%clk 0:02:17]} 21. Bxe4 {[%clk 0:02:01]}  Bxe4 {[%clk 0:02:18]} 22. f3 {[%clk 0:01:59]}  Bh7 {[%clk 0:02:17]} 23. g5 {[%clk 0:01:58]}  hxg5 {[%clk 0:02:15]} 24. hxg5 {[%clk 0:01:59]}  Bf5 {[%clk 0:02:06]} 25. Kf2 {[%clk 0:01:56]}  c5 {[%clk 0:01:38]} 26. Qf4 {[%clk 0:01:55]}  Bg6 {[%clk 0:01:16]} 27. Rh1 {[%clk 0:01:39]}  Qb2 {[%clk 0:00:53]} 28. Rxc5 {[%clk 0:01:33]}  a4 {[%clk 0:00:43]} 29. Qh4 {[%clk 0:01:21]}  Kf8 {[%clk 0:00:26]} 30. Rc7 {[%clk 0:01:21]}  Bh5 {[%clk 0:00:19]} 31. Qxh5 {[%clk 0:01:13]}  Qxd4+ {[%clk 0:00:17]} 32. Kg2 {[%clk 0:01:13]}  Qxe5 {[%clk 0:00:15]} 33. Qxf7# {[%clk 0:01:13]} 1-0


[Site "https://www.chess.com"]

[Event "Titled Tuesday Blitz May 9 Late 2023"]
[White "Pranav, V"]
[Black "Holt, Conrad"]
[WhiteFideId "25060783"]
[BlackFideId "2034387"]
[WhiteElo "2515"]
[BlackElo "2592"]
[Result "1-0"]
[Round "06"]
[TimeControl "180+2"]
[Date "2023.05.09"]
[WhiteClock "0:00:08"]
[BlackClock "0:00:00"]

1. e4 {[%clk 0:03:00]}  e6 {[%clk 0:03:00]} 2. d3 {[%clk 0:03:00]}  d5 {[%clk 0:03:00]} 3. Nd2 {[%clk 0:03:01]}  Bd6 {[%clk 0:02:59]} 4. Ngf3 {[%clk 0:03:01]}  c5 {[%clk 0:03:00]} 5. g3 {[%clk 0:03:00]}  Nc6 {[%clk 0:03:00]} 6. Bg2 {[%clk 0:03:01]}  Nge7 {[%clk 0:03:00]} 7. O-O {[%clk 0:03:02]}  O-O {[%clk 0:03:01]} 8. Re1 {[%clk 0:03:02]}  Qc7 {[%clk 0:03:01]} 9. Qe2 {[%clk 0:03:02]}  f6 {[%clk 0:03:00]} 10. c3 {[%clk 0:02:58]}  Bd7 {[%clk 0:02:59]} 11. Nf1 {[%clk 0:02:54]}  d4 {[%clk 0:03:00]} 12. cxd4 {[%clk 0:02:53]}  cxd4 {[%clk 0:02:57]} 13. Bd2 {[%clk 0:02:52]}  Qb6 {[%clk 0:02:52]} 14. Reb1 {[%clk 0:02:48]}  a5 {[%clk 0:02:47]} 15. Be1 {[%clk 0:02:46]}  Qa6 {[%clk 0:02:27]} 16. N1d2 {[%clk 0:02:39]}  b5 {[%clk 0:02:27]} 17. a4 {[%clk 0:02:39]}  bxa4 {[%clk 0:02:22]} 18. Nc4 {[%clk 0:02:39]}  Bb4 {[%clk 0:02:18]} 19. e5 {[%clk 0:02:34]}  Qb5 {[%clk 0:01:53]} 20. exf6 {[%clk 0:02:20]}  gxf6 {[%clk 0:01:52]} 21. Na3 {[%clk 0:02:16]}  Qb8 {[%clk 0:01:36]} 22. Nc2 {[%clk 0:02:11]}  e5 {[%clk 0:01:33]} 23. Rxa4 {[%clk 0:01:59]}  Qb5 {[%clk 0:01:30]} 24. Raa1 {[%clk 0:01:56]}  Bf5 {[%clk 0:01:25]} 25. Rd1 {[%clk 0:01:55]}  Bxe1 {[%clk 0:01:05]} 26. Ncxe1 {[%clk 0:01:53]}  Rab8 {[%clk 0:01:06]} 27. Nh4 {[%clk 0:01:52]}  Be6 {[%clk 0:01:02]} 28. Rdc1 {[%clk 0:01:51]}  f5 {[%clk 0:00:53]} 29. Bxc6 {[%clk 0:01:25]}  Nxc6 {[%clk 0:00:53]} 30. Nef3 {[%clk 0:01:26]}  Bd5 {[%clk 0:00:16]} 31. Ng5 {[%clk 0:01:00]}  Qxb2 {[%clk 0:00:15]} 32. Qh5 {[%clk 0:01:00]}  Rb7 {[%clk 0:00:14]} 33. Qh6 {[%clk 0:00:58]}  Qb6 {[%clk 0:00:09]} 34. Ngf3 {[%clk 0:00:36]}  Nb4 {[%clk 0:00:09]} 35. Qxb6 {[%clk 0:00:33]}  Rxb6 {[%clk 0:00:09]} 36. Nxe5 {[%clk 0:00:34]}  Re6 {[%clk 0:00:05]} 37. f4 {[%clk 0:00:33]}  Ra6 {[%clk 0:00:06]} 38. Rc5 {[%clk 0:00:30]}  a4 {[%clk 0:00:05]} 39. Rb5 {[%clk 0:00:12]}  Nc2 {[%clk 0:00:05]} 40. Rc1 {[%clk 0:00:12]}  Bb3 {[%clk 0:00:04]} 41. Nd7 {[%clk 0:00:10]}  Rf7 {[%clk 0:00:02]} 42. Nc5 {[%clk 0:00:10]}  Rc6 {[%clk 0:00:02]} 43. Nxb3 {[%clk 0:00:10]}  axb3 {[%clk 0:00:02]} 44. Rxb3 {[%clk 0:00:11]}  Rfc7 {[%clk 0:00:02]} 45. Nxf5 {[%clk 0:00:10]}  Kf8 {[%clk 0:00:01]} 46. Rb8+ {[%clk 0:00:10]}  Kf7 {[%clk 0:00:01]} 47. Kf2 {[%clk 0:00:09]}  Ke6 {[%clk 0:00:00]} 48. Nh4 {[%clk 0:00:08]} 1-0


[Site "https://www.chess.com"]

[Event "Titled Tuesday Blitz May 9 Late 2023"]
[White "Makarian, Rudik"]
[Black "Klukin, Kirill"]
[WhiteFideId "44105681"]
[BlackFideId "24199273"]
[WhiteElo "2461"]
[BlackElo "2344"]
[Result "1/2-1/2"]
[Round "06"]
[TimeControl "180+2"]
[Date "2023.05.09"]
[WhiteClock "0:00:10"]
[BlackClock "0:00:12"]

1. d4 {[%clk 0:02:59]}  Nf6 {[%clk 0:03:00]} 2. c4 {[%clk 0:03:00]}  Nc6 {[%clk 0:03:00]} 3. Nf3 {[%clk 0:02:59]}  e6 {[%clk 0:03:00]} 4. g3 {[%clk 0:02:59]}  Bb4+ {[%clk 0:03:01]} 5. Bd2 {[%clk 0:02:57]}  Qe7 {[%clk 0:03:01]} 6. Nc3 {[%clk 0:02:51]}  O-O {[%clk 0:02:58]} 7. Bg2 {[%clk 0:02:51]}  Bxc3 {[%clk 0:02:58]} 8. Bxc3 {[%clk 0:02:51]}  Ne4 {[%clk 0:02:59]} 9. Rc1 {[%clk 0:02:52]}  Nxc3 {[%clk 0:02:59]} 10. Rxc3 {[%clk 0:02:53]}  d6 {[%clk 0:03:00]} 11. d5 {[%clk 0:02:43]}  Nb8 {[%clk 0:03:00]} 12. dxe6 {[%clk 0:02:40]}  fxe6 {[%clk 0:03:01]} 13. O-O {[%clk 0:02:39]}  Nd7 {[%clk 0:02:55]} 14. b4 {[%clk 0:02:39]}  a5 {[%clk 0:02:55]} 15. a3 {[%clk 0:02:38]}  axb4 {[%clk 0:02:56]} 16. axb4 {[%clk 0:02:39]}  Nf6 {[%clk 0:02:33]} 17. Qc2 {[%clk 0:02:35]}  e5 {[%clk 0:02:31]} 18. c5 {[%clk 0:02:32]}  d5 {[%clk 0:02:28]} 19. Qb2 {[%clk 0:02:20]}  Bg4 {[%clk 0:02:21]} 20. Ra3 {[%clk 0:02:04]}  Bxf3 {[%clk 0:02:15]} 21. Rxa8 {[%clk 0:01:54]}  Rxa8 {[%clk 0:02:15]} 22. exf3 {[%clk 0:01:55]}  c6 {[%clk 0:02:13]} 23. Re1 {[%clk 0:01:55]}  Re8 {[%clk 0:02:12]} 24. h4 {[%clk 0:01:52]}  Qc7 {[%clk 0:02:02]} 25. b5 {[%clk 0:01:45]}  Nd7 {[%clk 0:01:47]} 26. Qb4 {[%clk 0:01:39]}  Ra8 {[%clk 0:01:25]} 27. Bh3 {[%clk 0:01:37]}  Nf6 {[%clk 0:01:21]} 28. b6 {[%clk 0:01:26]}  Qe7 {[%clk 0:01:16]} 29. g4 {[%clk 0:01:04]}  h6 {[%clk 0:01:11]} 30. g5 {[%clk 0:01:02]}  hxg5 {[%clk 0:01:03]} 31. hxg5 {[%clk 0:01:03]}  Nh7 {[%clk 0:01:02]} 32. f4 {[%clk 0:01:03]}  e4 {[%clk 0:00:54]} 33. Qd4 {[%clk 0:00:39]}  Nf8 {[%clk 0:00:37]} 34. f3 {[%clk 0:00:34]}  Ng6 {[%clk 0:00:32]} 35. Qe3 {[%clk 0:00:23]}  Ra4 {[%clk 0:00:25]} 36. Bc8 {[%clk 0:00:15]}  Nh4 {[%clk 0:00:17]} 37. Bg4 {[%clk 0:00:10]}  Qf7 {[%clk 0:00:14]} 38. Kh2 {[%clk 0:00:08]}  Ra2+ {[%clk 0:00:13]} 39. Kg3 {[%clk 0:00:07]}  Ng2 {[%clk 0:00:12]} 40. Qc1 {[%clk 0:00:02]}  Nxe1 {[%clk 0:00:11]} 41. Qxe1 {[%clk 0:00:03]}  Ra3 {[%clk 0:00:09]} 42. Qb4 {[%clk 0:00:02]}  Ra8 {[%clk 0:00:05]} 43. fxe4 {[%clk 0:00:02]}  dxe4 {[%clk 0:00:05]} 44. Qxe4 {[%clk 0:00:02]}  Re8 {[%clk 0:00:06]} 45. Qd3 {[%clk 0:00:01]}  Qe7 {[%clk 0:00:06]} 46. Qf3 {[%clk 0:00:01]}  Qe3 {[%clk 0:00:06]} 47. Qxe3 {[%clk 0:00:01]}  Rxe3+ {[%clk 0:00:06]} 48. Kh4 {[%clk 0:00:02]}  Rc3 {[%clk 0:00:06]} 49. Bc8 {[%clk 0:00:02]}  Rxc5 {[%clk 0:00:06]} 50. Bxb7 {[%clk 0:00:03]}  Rc1 {[%clk 0:00:05]} 51. Bc8 {[%clk 0:00:03]}  c5 {[%clk 0:00:06]} 52. Be6+ {[%clk 0:00:03]}  Kf8 {[%clk 0:00:05]} 53. b7 {[%clk 0:00:02]}  Rb1 {[%clk 0:00:06]} 54. Bd5 {[%clk 0:00:03]}  Ke7 {[%clk 0:00:05]} 55. f5 {[%clk 0:00:03]}  c4 {[%clk 0:00:03]} 56. Bxc4 {[%clk 0:00:03]}  Rxb7 {[%clk 0:00:04]} 57. Kh5 {[%clk 0:00:04]}  Kf8 {[%clk 0:00:04]} 58. Kg6 {[%clk 0:00:04]}  Rb6+ {[%clk 0:00:05]} 59. f6 {[%clk 0:00:04]}  gxf6 {[%clk 0:00:06]} 60. gxf6 {[%clk 0:00:05]}  Rb4 {[%clk 0:00:07]} 61. Be6 {[%clk 0:00:05]}  Rb2 {[%clk 0:00:07]} 62. Kf5 {[%clk 0:00:06]}  Rf2+ {[%clk 0:00:08]} 63. Ke5 {[%clk 0:00:07]}  Re2+ {[%clk 0:00:08]} 64. Kf5 {[%clk 0:00:07]}  Rf2+ {[%clk 0:00:09]} 65. Ke5 {[%clk 0:00:08]}  Ke8 {[%clk 0:00:09]} 66. Bd5 {[%clk 0:00:08]}  Re2+ {[%clk 0:00:09]} 67. Kd6 {[%clk 0:00:08]}  Kf8 {[%clk 0:00:09]} 68. Be6 {[%clk 0:00:08]}  Re1 {[%clk 0:00:10]} 69. Kd5 {[%clk 0:00:08]}  Re3 {[%clk 0:00:10]} 70. Kd6 {[%clk 0:00:09]}  Rg3 {[%clk 0:00:10]} 71. Ke5 {[%clk 0:00:09]}  Rg5+ {[%clk 0:00:11]} 72. Kf4 {[%clk 0:00:09]}  Rc5 {[%clk 0:00:11]} 73. Ke4 {[%clk 0:00:10]}  Ke8 {[%clk 0:00:12]} 74. Kf4 {[%clk 0:00:10]}  Ra5 {[%clk 0:00:12]} 75. Ke4 {[%clk 0:00:11]}  Kd8 {[%clk 0:00:13]} 76. Kf4 {[%clk 0:00:10]}  Kc7 {[%clk 0:00:12]} 77. f7 {[%clk 0:00:09]}  Ra8 {[%clk 0:00:12]} 78. Ke5 {[%clk 0:00:10]}  Rf8 {[%clk 0:00:12]} 79. Kf6 {[%clk 0:00:11]}  Kd6 {[%clk 0:00:13]} 80. Bb3 {[%clk 0:00:11]}  Rxf7+ {[%clk 0:00:12]} 81. Bxf7 {[%clk 0:00:10]} 1/2-1/2


[Site "https://www.chess.com"]

[Event "Titled Tuesday Blitz May 9 Late 2023"]
[White "Schmakel, Sam"]
[Black "Ibrahimli, Murad"]
[WhiteFideId "2039311"]
[BlackFideId "13410229"]
[WhiteElo "2356"]
[BlackElo "2364"]
[Result "1-0"]
[Round "06"]
[TimeControl "180+2"]
[Date "2023.05.09"]
[WhiteClock "0:00:23"]
[BlackClock "0:00:18"]

1. d4 {[%clk 0:03:00]}  Nf6 {[%clk 0:02:58]} 2. c4 {[%clk 0:03:00]}  g6 {[%clk 0:02:58]} 3. Nc3 {[%clk 0:03:01]}  Bg7 {[%clk 0:02:58]} 4. e4 {[%clk 0:03:01]}  d6 {[%clk 0:02:59]} 5. h3 {[%clk 0:03:01]}  Nc6 {[%clk 0:02:57]} 6. d5 {[%clk 0:03:00]}  Ne5 {[%clk 0:02:57]} 7. f4 {[%clk 0:03:00]}  Ned7 {[%clk 0:02:57]} 8. Be3 {[%clk 0:02:54]}  c6 {[%clk 0:02:57]} 9. Nf3 {[%clk 0:02:47]}  O-O {[%clk 0:02:57]} 10. Be2 {[%clk 0:02:41]}  cxd5 {[%clk 0:02:42]} 11. cxd5 {[%clk 0:02:40]}  Nh5 {[%clk 0:02:42]} 12. Kf2 {[%clk 0:02:41]}  Nc5 {[%clk 0:02:34]} 13. e5 {[%clk 0:02:33]}  f5 {[%clk 0:02:20]} 14. Bxc5 {[%clk 0:02:18]}  dxc5 {[%clk 0:02:21]} 15. g3 {[%clk 0:02:17]}  Qb6 {[%clk 0:02:12]} 16. Qb3 {[%clk 0:02:11]}  Kh8 {[%clk 0:02:02]} 17. Rhd1 {[%clk 0:02:03]}  Qa5 {[%clk 0:01:55]} 18. d6 {[%clk 0:01:53]}  exd6 {[%clk 0:01:52]} 19. Rxd6 {[%clk 0:01:54]}  Bh6 {[%clk 0:01:37]} 20. Rad1 {[%clk 0:01:43]}  Ng7 {[%clk 0:01:08]} 21. h4 {[%clk 0:01:12]}  a6 {[%clk 0:01:07]} 22. Ng5 {[%clk 0:01:07]}  Bxg5 {[%clk 0:01:04]} 23. hxg5 {[%clk 0:01:08]}  b5 {[%clk 0:01:05]} 24. Qd5 {[%clk 0:00:55]}  Be6 {[%clk 0:00:38]} 25. Rxe6 {[%clk 0:00:53]}  b4 {[%clk 0:00:39]} 26. Rxg6 {[%clk 0:00:34]}  bxc3 {[%clk 0:00:32]} 27. Rh6 {[%clk 0:00:28]}  Rad8 {[%clk 0:00:33]} 28. Rxh7+ {[%clk 0:00:27]}  Kxh7 {[%clk 0:00:27]} 29. Rh1+ {[%clk 0:00:28]}  Nh5 {[%clk 0:00:22]} 30. Rxh5+ {[%clk 0:00:28]}  Kg7 {[%clk 0:00:23]} 31. Qb7+ {[%clk 0:00:21]}  Rf7 {[%clk 0:00:21]} 32. Rh7+ {[%clk 0:00:22]}  Kxh7 {[%clk 0:00:22]} 33. Qxf7+ {[%clk 0:00:23]}  Kh8 {[%clk 0:00:18]} 34. g6 {[%clk 0:00:23]} 1-0


[Site "https://www.chess.com"]